fUSD/lending_fUSD_20240901
["ID","MTS","AMOUNT","RATE_DAILY","PERIOD"]
[336792869,1725155446210,-392.00256734,0.000128,2]
[336792870,1725155479611,158.49,9.999e-05,2]
[336792871,1725155608137,200.0,0.00023999,120]
[336792873,1725155650097,157.77,0.00010959,2]
[336792874,1725156129326,150.56,9.846e-05,2]
[336792875,1725156154955,550.0,0.00011,2]
[336792876,1725156207219,200.0,0.00023999,120]
[336792881,1725156545271,-1000.0,0.00011762,2]
[336792882,1725156545307,-255.0,0.00011762,2]
[336792883,1725156545346,-162.557887,0.00011763,2]
[336792886,1725156569022,-8.032113,0.00011763,2]
[336792887,1725156569051,-170.4,0.00011764,2]
[336792888,1725156569079,-208.51,0.00011765,2]
[336792889,1725156569108,-250.0,0.00011766,2]
[336792890,1725156569139,-51.80020855,0.000118,2]
[336792906,1725156631831,-203.19979145,0.000118,2]
[336792908,1725156631841,-150.56,0.0001211,2]
[336792909,1725156631851,-224.877,0.000126,2]
[336792910,1725156631861,-269.92591511,0.0001268,2]
[336792911,1725156631871,-34.72729344,0.00012699,2]
[336792912,1725156632016,-115.27270656,0.00012699,2]
[336792913,1725156632026,-300.0,0.00012699,2]
[336792914,1725156632036,-330.0409811,0.000127,2]
[336792915,1725156632049,-258.1042189,0.000127,2]
[336792916,1725156632059,-586.53174893,0.000127,2]
[336792917,1725156632071,-790.15908962,0.000127,2]
[336792918,1725156632083,-25214.36036145,0.000127,2]
[336792919,1725156632093,-10501.7833,0.000127,2]
[336792920,1725156632104,-16869.5282,0.000127,2]
[336792921,1725156632114,-5536.1365,0.000127,2]
[336792922,1725156632124,-3378.6122,0.000127,2]
[336792923,1725156632133,-2965.1636,0.000127,2]
[336792924,1725156632143,-29280.5564,0.000127,2]
[336792925,1725156632153,-26991.6442,0.000127,2]
[336792926,1725156632163,-29036.46019199,0.000127,2]
[336792927,1725156632175,-1292.3208,0.000127,2]
[336792928,1725156632184,-491.3012,0.000127,2]
[336792930,1725156632194,-499.99,0.000127,2]
[336792931,1725156632203,-457.46714521,0.000127,2]
[336792933,1725156632213,-457.46714517,0.00012729,2]
[336792935,1725156632222,-150.0,0.00012732,2]
[336792937,1725156632232,-150.0,0.00012733,2]
[336792939,1725156632242,-1693.40536378,0.00012737,2]
[336792941,1725156632254,-150.0,0.00012737,2]
[336792942,1725156632264,-150.0,0.00012738,2]
[336792944,1725156632273,-150.0,0.00012741,2]
[336792946,1725156632283,-150.0,0.00012741,2]
[336792948,1725156632292,-150.0,0.00012743,2]
[336792950,1725156632302,-150.0,0.00012744,2]
[336792952,1725156632311,-150.0,0.00012746,2]
[336792954,1725156632321,-150.0,0.0001275,2]
[336792956,1725156632331,-150.0,0.0001275,2]
[336792958,1725156632340,-1500.0,0.00012751,2]
[336792960,1725156632349,-150.0,0.00012753,2]
[336792961,1725156632359,-1438.73941373,0.00012753,2]
[336792963,1725156632368,-150.0,0.00012754,2]
[336792965,1725156632378,-150.0,0.00012755,2]
[336792966,1725156632387,-457.46714517,0.00012757,2]
[336792967,1725156632397,-150.0,0.00012759,2]
[336792968,1725156632406,-150.0,0.00012764,2]
[336792969,1725156632415,-150.0,0.00012767,2]
[336792970,1725156632425,-150.0,0.00012768,2]
[336792971,1725156632435,-150.0,0.0001277,2]
[336792972,1725156632444,-150.0,0.00012772,2]
[336792973,1725156632455,-150.0,0.00012775,2]
[336792974,1725156632465,-150.0,0.00012776,2]
[336792975,1725156632475,-150.0,0.00012778,2]
[336792976,1725156632484,-150.0,0.00012779,2]
[336792977,1725156632494,-150.0,0.00012779,2]
[336792978,1725156632504,-150.0,0.0001278,2]
[336792979,1725156632515,-150.0,0.00012781,2]
[336792980,1725156632524,-150.0,0.00012782,2]
[336792981,1725156632535,-1500.0,0.00012783,2]
[336792982,1725156632545,-150.52175457,0.00012783,2]
[336792983,1725156632556,-150.0,0.00012785,2]
[336792984,1725156632566,-457.46714517,0.00012786,2]
[336792985,1725156632576,-150.0,0.00012792,2]
[336792986,1725156632586,-150.0,0.00012797,2]
[336792987,1725156632597,-150.0,0.00012798,2]
[336792988,1725156632607,-500.0,0.00012799,2]
[336792989,1725156632618,-500.0,0.00012799,2]
[336792990,1725156632628,-500.0,0.00012799,2]
[336792991,1725156632638,-500.0,0.00012799,2]
[336792992,1725156632651,-500.0,0.00012799,2]
[336792993,1725156632661,-358.6404714,0.00012799,2]
[336792994,1725156632671,-500.0,0.00012799,2]
[336792995,1725156632681,-189.74939324,0.00012799,2]
[336792996,1725156632692,-150.0,0.00012799,2]
[336792997,1725156632701,-150.0,0.00012799,2]
[336792998,1725156632711,-84869.15762348,0.000128,2]
[336792999,1725156632721,-129470.41507331,0.000128,2]
[336793000,1725156632730,-1395.05120459,0.000128,2]
[336793001,1725156632740,-2874.71019,0.000128,2]
[336793002,1725156632750,-150.0,0.00012804,2]
[336793003,1725156632760,-150.0,0.00012808,2]
[336793004,1725156632770,-150.0,0.00012808,2]
[336793005,1725156632780,-150.0,0.00012809,2]
[336793006,1725156632790,-150.0,0.00012813,2]
[336793007,1725156632799,-150.0,0.00012814,2]
[336793008,1725156632809,-457.46714517,0.00012814,2]
[336793009,1725156632819,-150.0,0.00012815,2]
[336793010,1725156632828,-150.0,0.00012827,2]
[336793011,1725156632838,-150.0,0.00012827,2]
[336793012,1725156632848,-1500.0,0.00012829,2]
[336793013,1725156632858,-150.0,0.00012834,2]
[336793014,1725156632868,-150.0,0.00012835,2]
[336793015,1725156632877,-305.65924697,0.00012835,2]
[336793016,1725156632887,-150.0,0.00012837,2]
[336793017,1725156632898,-457.46714517,0.00012843,2]
[336793018,1725156632908,-150.0,0.00012845,2]
[336793019,1725156632917,-150.0,0.00012849,2]
[336793020,1725156632927,-150.0,0.0001285,2]
[336793021,1725156632936,-150.0,0.00012851,2]
[336793022,1725156632946,-150.0,0.00012854,2]
[336793023,1725156632955,-152.68511565,0.00012856,2]
[336793024,1725156632965,-150.0,0.00012858,2]
[336793025,1725156632974,-150.0,0.00012861,2]
[336793026,1725156632984,-150.0,0.00012862,2]
[336793027,1725156632993,-451.42295379,0.00012863,2]
[336793028,1725156633002,-150.0,0.0001287,2]
[336793029,1725156633012,-150.0,0.00012871,2]
[336793030,1725156633021,-457.46714517,0.00012871,2]
[336793031,1725156633030,-1500.0,0.00012875,2]
[336793032,1725156633040,-150.0,0.0001288,2]
[336793033,1725156633050,-150.0,0.00012884,2]
[336793034,1725156633060,-150.0,0.00012886,2]
[336793035,1725156633070,-150.0,0.00012888,2]
[336793036,1725156633079,-150.0,0.00012888,2]
[336793037,1725156633089,-150.0,0.00012889,2]
[336793038,1725156633099,-150.0,0.00012891,2]
[336793039,1725156633108,-150.0,0.00012892,2]
[336793040,1725156633118,-150.0,0.00012892,2]
[336793041,1725156633127,-500.0,0.00012896,2]
[336793042,1725156633137,-4540.35014685,0.000129,2]
[336793043,1725156633148,-150.0,0.000129,2]
[336793044,1725156633157,-180.00994454,0.000129,2]
[336793045,1725156633167,-1588.93,0.000129,2]
[336793046,1725156633181,-1016.83143821,0.000129,2]
[336793047,1725156633191,-1218.58457866,0.000129,2]
[336793048,1725156633201,-498.3753918,0.000129,2]
[336793049,1725156633210,-457.46714517,0.000129,2]
[336793050,1725156633221,-188.8060097,0.000129,2]
[336793051,1725156633231,-150.0,0.00012901,2]
[336793052,1725156633241,-150.0,0.00012905,2]
[336793053,1725156633252,-150.0,0.00012906,2]
[336793054,1725156633262,-150.0,0.00012914,2]
[336793055,1725156633272,-150.0,0.00012915,2]
[336793056,1725156633282,-150.0,0.00012917,2]
[336793057,1725156633292,-150.0,0.00012919,2]
[336793058,1725156633302,-1500.0,0.00012922,2]
[336793059,1725156633311,-150.0,0.00012924,2]
[336793060,1725156633321,-150.0,0.00012924,2]
[336793061,1725156633331,-150.0,0.00012927,2]
[336793062,1725156633340,-150.0,0.00012931,2]
[336793063,1725156633350,-150.0,0.00012935,2]
[336793064,1725156633360,-500.0,0.00012935,2]
[336793065,1725156633370,-500.0,0.00012935,2]
[336793066,1725156633379,-500.0,0.00012935,2]
[336793067,1725156633389,-500.0,0.00012935,2]
[336793068,1725156633399,-500.0,0.00012935,2]
[336793069,1725156633408,-386.0938,0.00012935,2]
[336793070,1725156633418,-500.0,0.00012935,2]
[336793071,1725156633427,-500.0,0.00012935,2]
[336793072,1725156633436,-500.0,0.00012935,2]
[336793073,1725156633446,-500.0,0.00012935,2]
[336793074,1725156633455,-500.0,0.00012935,2]
[336793075,1725156633465,-500.0,0.00012935,2]
[336793076,1725156633475,-500.0,0.00012935,2]
[336793077,1725156633484,-500.0,0.00012935,2]
[336793078,1725156633503,-507.9462,0.00012935,2]
[336793079,1725156633514,-150.0,0.00012937,2]
[336793080,1725156633523,-150.0,0.00012937,2]
[336793081,1725156633533,-150.0,0.0001294,2]
[336793082,1725156633543,-150.0,0.00012942,2]
[336793083,1725156633552,-150.0,0.00012943,2]
[336793084,1725156633562,-151.66077891,0.00012946,2]
[336793085,1725156633572,-150.0,0.00012946,2]
[336793086,1725156633582,-150.0,0.00012951,2]
[336793087,1725156633591,-150.0,0.00012951,2]
[336793088,1725156633601,-1500.0,0.00012952,2]
[336793089,1725156633610,-150.0,0.00012956,2]
[336793090,1725156633620,-150.0,0.00012963,2]
[336793091,1725156633630,-150.0,0.00012963,2]
[336793092,1725156633640,-150.0,0.00012964,2]
[336793093,1725156633650,-150.0,0.00012964,2]
[336793094,1725156633660,-150.0,0.00012966,2]
[336793095,1725156633671,-150.0,0.00012967,2]
[336793096,1725156633681,-150.0,0.00012972,2]
[336793097,1725156633692,-150.0,0.00012972,2]
[336793098,1725156633702,-500.64047193,0.00012973,2]
[336793099,1725156633712,-150.0,0.00012974,2]
[336793100,1725156633723,-150.0,0.00012975,2]
[336793101,1725156633733,-150.0,0.00012984,2]
[336793102,1725156633743,-673.0,0.00012985,2]
[336793103,1725156633753,-677.0,0.00012986,2]
[336793104,1725156633764,-150.0,0.00012989,2]
[336793105,1725156633774,-150.0,0.00012993,2]
[336793106,1725156633785,-150.0,0.00012994,2]
[336793107,1725156633794,-150.0,0.00012995,2]
[336793108,1725156633805,-2920.3580905,0.00012996,2]
[336793109,1725156633815,-219.15287059,0.00012997,2]
[336793110,1725156633825,-150.0,0.00012997,2]
[336793111,1725156633836,-150.0,0.00012997,2]
[336793112,1725156633846,-1374.88167891,0.00012999,2]
[336793113,1725156633856,-568.23068717,0.00012999,2]
[336793114,1725156633866,-178178.39599318,0.00013,2]
[336793115,1725156633880,-297.04785907,0.00013,2]
[336793116,1725156633893,-1003.2257048,0.00013,2]
[336793117,1725156633906,-6223.53661166,0.00013,2]
[336793118,1725156633945,-1033.09125361,0.00013,2]
[336793119,1725156633957,-283.8100001,0.00013,2]
[336793122,1725156638060,-687.44083945,0.00012999,2]
[336793123,1725156638069,-2050179.71949141,0.00013,2]
[336793124,1725156638079,-4179.80878076,0.00013,2]
[336793125,1725156638088,-199.999999,0.00013,2]
[336793126,1725156638097,-2987.52601144,0.00013,2]
[336793127,1725156638106,-488966.20964833,0.00013,2]
[336793128,1725156638118,-435.35854429,0.00013,2]
[336793129,1725156638129,-703.20536157,0.00013,2]
[336793130,1725156638141,-10231.82958382,0.00013,2]
[336793131,1725156638154,-287.88783228,0.00013,2]
[336793132,1725156638165,-31381.03398779,0.00013,2]
[336793133,1725156638180,-20046.88647575,0.00013,2]
[336793134,1725156638191,-453.0,0.00013,2]
[336793135,1725156638229,-664.7658,0.00013,2]
[336793136,1725156638241,-1507.57772365,0.00013,2]
[336793137,1725156638256,-522.95955266,0.00013,2]
[336793138,1725156638433,-687.70165643,0.00013,2]
[336793140,1725156638444,-67280.53398539,0.00013,2]
[336793291,1725156640141,-283.21852827,0.00013,2]
[336793293,1725156640154,-31971.56757775,0.00013,2]
[336793295,1725156640165,-3470.13415581,0.00013,2]
[336793298,1725156640180,-1296.28750592,0.00013,2]
[336793300,1725156640191,-247389.63830131,0.00013,2]
[336793313,1725156640318,-1961.74684849,0.00013,2]
[336793599,1725156643034,-475.93121441,0.000129,2]
[336793601,1725156643044,-845.76006065,0.00013,2]
[336793603,1725156643054,-10034.08847094,0.00013,2]
[336793605,1725156643065,-289.10000002,0.00013,2]
[336793664,1725156643758,-1242.37029582,0.00013,2]
[336793669,1725156643798,-284.9999999,0.00013,2]
[336793884,1725156645856,-588.17,0.00013,2]
[336793907,1725156646044,-321.8,0.00013,2]
[336793909,1725156646055,-387.7317709,0.00013,2]
[336793912,1725156646066,-654.66412722,0.00013,2]
[336793914,1725156646076,-542.85887076,0.00013,2]
[336793916,1725156646087,-6548.77430072,0.00013,2]
[336793972,1725156646659,-1691.35803079,0.000129,2]
[336793973,1725156646669,-6134.79535038,0.00013,2]
[336793974,1725156646681,-588.0,0.00013,2]
[336793975,1725156646693,-8840.8761939,0.00013,2]
[336794200,1725156719341,203.09,0.00010959,2]
[336794201,1725156806423,200.0,0.00023999,120]
[336794203,1725157191155,150.56,0.00010592,2]
[336794205,1725157363633,166.28,0.00010959,2]
[336794207,1725157405721,200.0,0.00023999,120]
[336794208,1725157520334,2376.87311169,9e-05,2]
[336794209,1725157553864,4497.02284836,6.94e-05,2]
[336794210,1725157591549,153.49543182,0.000109,2]
[336794215,1725157695545,-2468.06886887,0.00011772,2]
[336794217,1725157695577,-170.42,0.00011867,2]
[336794218,1725157695608,-250.0,0.00011869,2]
[336794220,1725157695636,-2017.46679212,0.00011869,2]
[336794222,1725157695770,-2389.55496479,0.00011869,2]
[336794226,1725157720613,-177.69824309,0.00011869,2]
[336794227,1725157720642,-1000.0,0.00011872,2]
[336794228,1725157720669,-3492.70732766,0.00011966,2]
[336794259,1725157832080,-298.3,0.00011872,2]
[336794260,1725157832092,-201.7,0.00011872,2]
[336794261,1725157832101,-514.46267234,0.00011966,2]
[336794262,1725157832112,-893.121166,0.00012483,2]
[336794264,1725157832121,-195.36,0.00012546,2]
[336794266,1725157832130,-150.0,0.00012726,2]
[336794268,1725157832139,-150.0,0.00012729,2]
[336794271,1725157832148,-150.0,0.0001273,2]
[336794273,1725157832157,-150.0,0.00012732,2]
[336794275,1725157832166,-150.0,0.00012736,2]
[336794277,1725157832175,-150.0,0.00012736,2]
[336794278,1725157832184,-499.99,0.00012736,2]
[336794279,1725157832194,-150.0,0.00012737,2]
[336794280,1725157832204,-150.0,0.00012738,2]
[336794282,1725157832213,-150.0,0.00012739,2]
[336794283,1725157832222,-150.0,0.00012745,2]
[336794284,1725157832231,-150.0,0.00012747,2]
[336794285,1725157832242,-150.0,0.00012748,2]
[336794286,1725157832251,-150.0,0.00012749,2]
[336794287,1725157832260,-150.0,0.0001275,2]
[336794288,1725157832271,-150.0,0.00012751,2]
[336794289,1725157832280,-150.0,0.00012753,2]
[336794290,1725157832289,-150.0,0.00012754,2]
[336794291,1725157832298,-150.0,0.00012755,2]
[336794292,1725157832307,-150.0,0.00012755,2]
[336794293,1725157832316,-150.0,0.00012758,2]
[336794294,1725157832325,-150.0,0.00012758,2]
[336794295,1725157832334,-150.0,0.00012758,2]
[336794296,1725157832344,-150.0,0.0001276,2]
[336794297,1725157832353,-150.0,0.00012769,2]
[336794298,1725157832364,-150.0,0.0001277,2]
[336794299,1725157832373,-31112.856,0.0001277,2]
[336794300,1725157832382,-150.0,0.00012771,2]
[336794301,1725157832391,-150.0,0.00012774,2]
[336794302,1725157832400,-150.0,0.00012791,2]
[336794303,1725157832409,-150.0,0.00012791,2]
[336794304,1725157832419,-150.0,0.00012793,2]
[336794305,1725157832427,-150.0,0.00012798,2]
[336794306,1725157832436,-150.0,0.00012802,2]
[336794307,1725157832446,-150.0,0.00012804,2]
[336794308,1725157832457,-150.0,0.00012809,2]
[336794309,1725157832468,-150.0,0.00012809,2]
[336794310,1725157832479,-150.0,0.00012809,2]
[336794311,1725157832487,-150.0,0.00012809,2]
[336794313,1725157832496,-150.0,0.00012814,2]
[336794314,1725157832506,-1500.0,0.00012815,2]
[336794315,1725157832515,-150.0,0.00012816,2]
[336794316,1725157832525,-150.0,0.00012822,2]
[336794317,1725157832534,-150.0,0.00012823,2]
[336794318,1725157832543,-150.0,0.00012827,2]
[336794319,1725157832554,-150.0,0.00012828,2]
[336794320,1725157832565,-150.0,0.0001283,2]
[336794321,1725157832579,-150.0,0.00012833,2]
[336794322,1725157832588,-150.0,0.00012834,2]
[336794323,1725157832597,-150.0,0.00012838,2]
[336794324,1725157832607,-150.0,0.00012838,2]
[336794325,1725157832617,-150.0,0.00012845,2]
[336794326,1725157832626,-150.0,0.00012848,2]
[336794327,1725157832636,-1310.29541612,0.0001285,2]
[336794328,1725157832646,-150.0,0.00012854,2]
[336794329,1725157832656,-150.0,0.00012854,2]
[336794330,1725157832664,-150.0,0.00012859,2]
[336794331,1725157832674,-150.0,0.00012861,2]
[336794332,1725157832684,-150.0,0.00012861,2]
[336794333,1725157832694,-150.0,0.00012862,2]
[336794334,1725157832705,-150.0,0.00012863,2]
[336794335,1725157832715,-150.0,0.0001287,2]
[336794336,1725157832724,-150.0,0.00012879,2]
[336794337,1725157832733,-150.0,0.00012881,2]
[336794338,1725157832742,-150.0,0.00012884,2]
[336794339,1725157832753,-150.0,0.00012888,2]
[336794340,1725157832762,-150.0,0.0001289,2]
[336794341,1725157832772,-150.0,0.0001289,2]
[336794342,1725157832783,-150.0,0.00012893,2]
[336794343,1725157832793,-150.0,0.00012896,2]
[336794344,1725157832804,-150.0,0.00012899,2]
[336794345,1725157832813,-297.7529,0.000129,2]
[336794346,1725157832823,-2953.3969,0.000129,2]
[336794347,1725157832832,-163.926,0.000129,2]
[336794348,1725157832841,-177.388712,0.000129,2]
[336794349,1725157832851,-188.8060097,0.000129,2]
[336794350,1725157832861,-27052.28916801,0.000129,2]
[336794351,1725157832871,-181.14131168,0.000129,2]
[336794352,1725157832880,-305.65924695,0.000129,2]
[336794353,1725157832889,-3382.71606158,0.000129,2]
[336794354,1725157832899,-150.0,0.00012902,2]
[336794355,1725157832909,-150.0,0.00012903,2]
[336794356,1725157832918,-150.0,0.0001291,2]
[336794357,1725157832927,-150.0,0.0001292,2]
[336794358,1725157832936,-150.0,0.0001292,2]
[336794359,1725157832945,-150.0,0.00012921,2]
[336794360,1725157832954,-150.0,0.00012924,2]
[336794361,1725157832964,-150.0,0.00012925,2]
[336794362,1725157832973,-150.0,0.00012925,2]
[336794363,1725157832982,-150.0,0.00012926,2]
[336794364,1725157832991,-150.0,0.00012928,2]
[336794365,1725157833001,-150.0,0.0001293,2]
[336794366,1725157833010,-150.0,0.0001293,2]
[336794367,1725157833019,-150.0,0.00012932,2]
[336794368,1725157833028,-150.0,0.00012937,2]
[336794369,1725157833037,-150.0,0.00012939,2]
[336794370,1725157833046,-150.0,0.00012944,2]
[336794371,1725157833055,-150.0,0.00012947,2]
[336794372,1725157833065,-150.0,0.00012953,2]
[336794373,1725157833074,-150.0,0.00012953,2]
[336794374,1725157833084,-150.0,0.00012955,2]
[336794375,1725157833093,-150.0,0.00012957,2]
[336794376,1725157833103,-150.0,0.00012957,2]
[336794377,1725157833113,-150.0,0.00012958,2]
[336794378,1725157833123,-150.0,0.0001296,2]
[336794379,1725157833132,-150.0,0.00012965,2]
[336794380,1725157833141,-150.0,0.00012966,2]
[336794381,1725157833150,-150.0,0.00012975,2]
[336794382,1725157833160,-150.0,0.00012979,2]
[336794383,1725157833169,-150.0,0.00012981,2]
[336794384,1725157833178,-150.0,0.00012985,2]
[336794385,1725157833188,-150.0,0.00012988,2]
[336794386,1725157833197,-172.57,0.0001299,2]
[336794387,1725157833207,-150.0,0.0001299,2]
[336794388,1725157833217,-150.0,0.00012996,2]
[336794389,1725157833226,-2992.1948326,0.00012996,2]
[336794390,1725157833235,-65791.8978471,0.00012996,2]
[336794391,1725157833244,-500.0,0.00012999,2]
[336794392,1725157833253,-500.0,0.00012999,2]
[336794393,1725157833262,-500.0,0.00012999,2]
[336794394,1725157833277,-500.0,0.00012999,2]
[336794395,1725157833291,-500.0,0.00012999,2]
[336794396,1725157833305,-467.96733929,0.00012999,2]
[336794397,1725157833318,-500.0,0.00012999,2]
[336794398,1725157833330,-500.0,0.00012999,2]
[336794399,1725157833342,-464.17646967,0.00012999,2]
[336794400,1725157833354,-450.81691465,0.00012999,2]
[336794401,1725157833372,-951.0,0.00013,2]
[336794402,1725157833384,-45721.94266536,0.00013,2]
[336794403,1725157833402,-327.85685687,0.00013,2]
[336794404,1725157833431,-503.88900716,0.00013,2]
[336794405,1725157833448,-1926.93036806,0.00013,2]
[336794406,1725157833463,-341.48088377,0.00013,2]
[336794407,1725157833478,-2481.20419989,0.00013,2]
[336794408,1725157833492,-6558.09753364,0.00013,2]
[336794409,1725157833508,-2637.74911535,0.00013,2]
[336794410,1725157833550,-5748.31713564,0.00013,2]
[336794411,1725157833567,-555.90330277,0.00013,2]
[336794412,1725157833585,-1865.69249295,0.00013,2]
[336794413,1725157833600,-751.39001507,0.00013,2]
[336794414,1725157833618,-479917.93605831,0.00013,2]
[336794415,1725157833634,-4887.80492852,0.00013,2]
[336794416,1725157833652,-769.5931048,0.00013,2]
[336794417,1725157833668,-13570.9141484,0.00013,2]
[336794418,1725157833680,-976.47953325,0.00013,2]
[336794419,1725157833694,-1179.19664218,0.00013,2]
[336794423,1725157838089,-1004.0,0.000129,2]
[336794425,1725157838099,-15040.64138191,0.00013,2]
[336794426,1725157838173,-1107.2408442,0.00013,2]
[336794427,1725157838185,-19177.27197511,0.00013,2]
[336794428,1725157838197,-58501.341075,0.00013,2]
[336794429,1725157838209,-1999.7712,0.00013,2]
[336794430,1725157838220,-5840.0,0.00013,2]
[336794431,1725157838231,-2388.94041669,0.00013,2]
[336794432,1725157838292,-343455.23256038,0.00013,2]
[336794433,1725157838320,-14005.94135658,0.00013,2]
[336794434,1725157838330,-9247.40127066,0.00013,2]
[336794435,1725157838341,-1919.49092263,0.00013,2]
[336794436,1725157838454,-1632.9959002,0.00013,2]
[336794437,1725157838465,-1079.19611686,0.00013,2]
[336794438,1725157838476,-965.47893929,0.00013,2]
[336794440,1725157838535,-1002.00817452,0.00013,2]
[336794442,1725157838546,-1698.03970922,0.00013,2]
[336794619,1725157840261,-225.40845733,0.00012999,2]
[336794621,1725157840271,-534.70745992,0.00013,2]
[336794623,1725157840282,-401.71205352,0.00013,2]
[336794625,1725157840293,-3333.99104239,0.00013,2]
[336794627,1725157840304,-603.04356839,0.00013,2]
[336794629,1725157840315,-976.44082462,0.00013,2]
[336794631,1725157840327,-517.39578675,0.00013,2]
[336794634,1725157840340,-5198.16634652,0.00013,2]
[336794636,1725157840351,-62165.98744174,0.00013,2]
[336794638,1725157840361,-267459.77598392,0.00013,2]
[336794642,1725157840389,-225784.62608766,0.00013,2]
[336794912,1725157843134,-1268.0901307,0.00012996,2]
[336794914,1725157843143,-192664.69888032,0.00013,2]
[336794916,1725157843155,-3313.60911296,0.00013,2]
[336794918,1725157843166,-179597.59637921,0.00013,2]
[336794920,1725157843177,-182410.39808742,0.00013,2]
[336794923,1725157843188,-526.02,0.00013,2]
[336794968,1725157843617,-16891.13839067,0.00013,2]
[336794969,1725157843628,-41267.07280459,0.00013,2]
[336794970,1725157843638,-2312.56384429,0.00013,2]
[336794971,1725157843647,-905.0,0.00013,2]
[336794972,1725157843656,-1124.43615591,0.00013,2]
[336794973,1725157843667,-12013.5,0.00013,2]
[336794974,1725157843689,-24643.44944265,0.00013,2]
[336794975,1725157843700,-71783.70110887,0.00013,2]
[336794986,1725157846067,-2083.27326573,0.00013,2]
[336794987,1725157846079,-1543.58513441,0.00013,2]
[336794988,1725157846091,-548.45364444,0.00013,2]
[336794989,1725157846103,-695.86652717,0.00013,2]
[336794990,1725157846116,-770.05028077,0.00013,2]
[336794991,1725157846129,-288.99288476,0.00013,2]
[336794992,1725157846140,-749.8619128,0.00013,2]
[336794993,1725157846151,-249820.52313987,0.00013,2]
[336794994,1725157846162,-16494.92543008,0.00013,2]
[336794995,1725157846190,-1170.0,0.00013,2]
[336794996,1725157846270,-54163.4370174,0.00013,2]
[336794997,1725157846281,-2863.14707714,0.00013,2]
[336794998,1725157846292,-1771.28239606,0.00013,2]
[336794999,1725157846303,-35179.26100874,0.00013,2]
[336795000,1725157846316,-584.3838,0.00013,2]
[336795008,1725157919065,152.63,0.00010959,2]
[336795009,1725157926224,168.69,0.00010155,2]
[336795014,1725157959475,550.0,0.00011,2]
[336795019,1725158407100,150.56,0.00010811,2]
[336795021,1725158505411,157.77,0.00010959,2]
[336795022,1725158607844,200.0,0.00023999,120]
[336795025,1725158909257,150.56,9.954e-05,2]
[336795026,1725158955653,168.69,9.132e-05,2]
[336795029,1725158985531,192.63,0.00010959,2]
[336795032,1725158987791,300.22705744,0.00022,60]
[336795037,1725159032363,-200.0,0.0001187,2]
[336795038,1725159032373,-156.29,0.00011874,2]
[336795039,1725159032383,-60.39171779,0.00011877,2]
[336795060,1725159038331,-189.60828221,0.00011877,2]
[336795062,1725159038341,-861.99,0.00011879,2]
[336795064,1725159038350,-209.62,0.00012562,2]
[336795065,1725159038360,-800.0,0.00012693,2]
[336795066,1725159038370,-781.8017,0.000127,2]
[336795067,1725159038380,-1000.0,0.000127,2]
[336795068,1725159038390,-150.0,0.00012712,2]
[336795069,1725159038399,-150.0,0.00012726,2]
[336795070,1725159038409,-150.0,0.00012728,2]
[336795071,1725159038419,-150.0,0.00012731,2]
[336795072,1725159038428,-150.0,0.00012733,2]
[336795073,1725159038438,-150.0,0.00012734,2]